[Event "*** Titled Tuesday Blitz"]
[Site "Chess.com"]
[Date "2020.02.04"]
[Round "3"]
[White "Korona_91"]
[Black "x-3738459472"]
[Result "1-0"]
[WhiteElo "2433"]
[BlackElo "2600"]
[TimeControl "180+2"]
[EndTime "13:35:28 PST"]
[Termination "Korona_91 won by resignation"]

1. e4 {[%clk 0:03:00.5]} 1... c5 {[%clk 0:03:00.9]} 2. Nf3 {[%clk 0:03:01.5]}
2... Nc6 {[%clk 0:03:02.2]} 3. Bb5 {[%clk 0:03:02.3]} 3... d6 {[%clk 0:03:01.4]}
4. O-O {[%clk 0:03:01.4]} 4... Bd7 {[%clk 0:02:59.1]} 5. c3 {[%clk 0:03:02]}
5... Nf6 {[%clk 0:02:59.5]} 6. Re1 {[%clk 0:03:03.3]} 6... a6 {[%clk 0:03:00.9]}
7. Bf1 {[%clk 0:03:03.8]} 7... Bg4 {[%clk 0:03:01.7]} 8. h3 {[%clk 0:03:02.7]}
8... Bh5 {[%clk 0:03:01.5]} 9. Na3 {[%clk 0:03:03.7]} 9... e6 {[%clk 0:03:01.4]}
10. Nc2 {[%clk 0:03:03.8]} 10... Be7 {[%clk 0:03:03.2]} 11. d4 {[%clk
0:03:02.8]} 11... cxd4 {[%clk 0:03:04.2]} 12. Ncxd4 {[%clk 0:03:01]} 12... Nxd4
{[%clk 0:03:05]} 13. cxd4 {[%clk 0:03:02.9]} 13... d5 {[%clk 0:03:06.2]} 14. e5
{[%clk 0:03:03.6]} 14... Nd7 {[%clk 0:03:07.2]} 15. Bf4 {[%clk 0:02:57.8]} 15...
O-O {[%clk 0:03:07.3]} 16. Bd3 {[%clk 0:02:59.1]} 16... Qb6 {[%clk 0:03:03.7]}
17. Rb1 {[%clk 0:02:55.6]} 17... Rac8 {[%clk 0:03:00]} 18. Be3 {[%clk 0:02:05]}
18... Rc7 {[%clk 0:02:58.4]} 19. a3 {[%clk 0:02:03.6]} 19... Rfc8 {[%clk
0:02:41.2]} 20. Qd2 {[%clk 0:02:03.1]} 20... Bg6 {[%clk 0:02:41.3]} 21. Bxg6
{[%clk 0:02:03.9]} 21... hxg6 {[%clk 0:02:41.1]} 22. Bg5 {[%clk 0:02:01.9]}
22... Rc2 {[%clk 0:02:40.4]} 23. Qf4 {[%clk 0:02:01.3]} 23... Bf8 {[%clk
0:02:40.1]} 24. Bh4 {[%clk 0:01:54.9]} 24... Qc7 {[%clk 0:02:23.4]} 25. Ng5
{[%clk 0:01:52.7]} 25... Nb8 {[%clk 0:02:21.3]} 26. Bg3 {[%clk 0:01:53.9]} 26...
Nc6 {[%clk 0:02:18.8]} 27. Qh4 {[%clk 0:01:53]} 27... Bb4 {[%clk 0:01:51.1]} 28.
axb4 {[%clk 0:01:52.7]} 28... Nxb4 {[%clk 0:01:51.9]} 29. Qh7+ {[%clk
0:01:49.9]} 29... Kf8 {[%clk 0:01:53.2]} 30. Qh8+ {[%clk 0:01:51.2]} 30... Ke7
{[%clk 0:01:54.5]} 31. Qxg7 {[%clk 0:01:52.7]} 31... Rf8 {[%clk 0:01:56]} 32.
Bh4 {[%clk 0:01:39.9]} 1-0

[Event "*** Titled Tuesday Blitz"]
[Site "Chess.com"]
[Date "2020.02.04"]
[Round "3"]
[White "CrushingKings"]
[Black "MarcoRiehle"]
[Result "0-1"]
[WhiteElo "2164"]
[BlackElo "2641"]
[TimeControl "180+2"]
[EndTime "13:35:29 PST"]
[Termination "MarcoRiehle won by resignation"]

1. e4 {[%clk 0:03:01.9]} 1... e5 {[%clk 0:02:59.3]} 2. Nf3 {[%clk 0:03:02.9]}
2... Nf6 {[%clk 0:03:00.3]} 3. Nxe5 {[%clk 0:03:02.8]} 3... Nxe4 {[%clk
0:03:00.8]} 4. Nf3 {[%clk 0:03:04.3]} 4... d5 {[%clk 0:03:00.7]} 5. d3 {[%clk
0:03:04.1]} 5... Nf6 {[%clk 0:02:59.5]} 6. d4 {[%clk 0:03:04.5]} 6... Bd6 {[%clk
0:02:58.6]} 7. Bd3 {[%clk 0:03:04.9]} 7... O-O {[%clk 0:02:52.7]} 8. O-O {[%clk
0:03:06.1]} 8... Bg4 {[%clk 0:02:53.2]} 9. h3 {[%clk 0:03:07.3]} 9... Bh5 {[%clk
0:02:53.3]} 10. Re1 {[%clk 0:03:07.2]} 10... h6 {[%clk 0:02:52.4]} 11. Nbd2
{[%clk 0:03:07.7]} 11... c5 {[%clk 0:02:51.4]} 12. dxc5 {[%clk 0:03:08.3]} 12...
Bxc5 {[%clk 0:02:50.9]} 13. Nb3 {[%clk 0:03:08.7]} 13... Bb6 {[%clk 0:02:49.4]}
14. Be3 {[%clk 0:02:45.2]} 14... Bc7 {[%clk 0:02:44.2]} 15. Bc5 {[%clk
0:01:31.6]} 15... Re8 {[%clk 0:02:37.2]} 16. Rxe8+ {[%clk 0:01:32.5]} 16... Qxe8
{[%clk 0:02:39.1]} 17. g4 {[%clk 0:01:33.8]} 17... Nxg4 {[%clk 0:02:31.2]} 18.
hxg4 {[%clk 0:01:34.6]} 18... Bxg4 {[%clk 0:02:33.1]} 19. Qe1 {[%clk 0:01:35.9]}
19... Qd8 {[%clk 0:02:27.3]} 20. Nh2 {[%clk 0:01:19.6]} 20... Bxh2+ {[%clk
0:02:17]} 21. Kxh2 {[%clk 0:01:21.5]} 21... Qh4+ {[%clk 0:02:18.4]} 22. Kg1
{[%clk 0:01:23.1]} 22... Nd7 {[%clk 0:02:17.2]} 23. Bd6 {[%clk 0:01:21.3]} 23...
Bf3 {[%clk 0:02:15.8]} 24. Bh2 {[%clk 0:00:44.5]} 24... Qg4+ {[%clk 0:02:15.2]}
25. Bg3 {[%clk 0:00:46]} 25... Qh3 {[%clk 0:02:15]} 0-1

[Event "*** Titled Tuesday Blitz"]
[Site "Chess.com"]
[Date "2020.02.04"]
[Round "3"]
[White "ehrenfeld"]
[Black "Sajkochess"]
[Result "1-0"]
[WhiteElo "2507"]
[BlackElo "2294"]
[TimeControl "180+2"]
[EndTime "13:35:42 PST"]
[Termination "ehrenfeld won by resignation"]

1. e4 {[%clk 0:03:01.9]} 1... e5 {[%clk 0:02:56.4]} 2. Nc3 {[%clk 0:03:01.5]}
2... Nf6 {[%clk 0:02:53.3]} 3. f4 {[%clk 0:03:02.4]} 3... d5 {[%clk 0:02:52.3]}
4. fxe5 {[%clk 0:03:03.5]} 4... Nxe4 {[%clk 0:02:52.6]} 5. Qf3 {[%clk
0:03:04.9]} 5... Nxc3 {[%clk 0:02:47.1]} 6. bxc3 {[%clk 0:03:05.4]} 6... Be7
{[%clk 0:02:47.1]} 7. d4 {[%clk 0:03:06]} 7... O-O {[%clk 0:02:38.8]} 8. Bd3
{[%clk 0:03:06.8]} 8... Qd7 {[%clk 0:02:02.2]} 9. Ne2 {[%clk 0:03:05.6]} 9... c6
{[%clk 0:02:00.2]} 10. O-O {[%clk 0:03:05.5]} 10... Qg4 {[%clk 0:01:59.9]} 11.
Qf2 {[%clk 0:03:02.1]} 11... f6 {[%clk 0:01:49.2]} 12. h3 {[%clk 0:03:01.8]}
12... Qd7 {[%clk 0:01:18.8]} 13. Qh4 {[%clk 0:02:51.8]} 13... g6 {[%clk
0:01:17.6]} 14. exf6 {[%clk 0:02:45.9]} 14... Bd6 {[%clk 0:01:17.6]} 15. Bh6
{[%clk 0:02:42.4]} 15... Rf7 {[%clk 0:01:14.3]} 16. Rae1 {[%clk 0:02:40.3]}
16... Na6 {[%clk 0:01:11.2]} 17. Qg5 {[%clk 0:02:35.3]} 17... Bf8 {[%clk
0:01:01.5]} 18. Bxf8 {[%clk 0:02:18.6]} 18... Kxf8 {[%clk 0:00:58.9]} 19. Bxg6
{[%clk 0:02:06]} 19... hxg6 {[%clk 0:00:52.8]} 20. Nf4 {[%clk 0:02:06.9]} 20...
Qf5 {[%clk 0:00:28.4]} 21. Nxg6+ {[%clk 0:02:07.3]} 21... Kg8 {[%clk 0:00:24.2]}
22. Ne7+ {[%clk 0:02:04.9]} 1-0

[Event "*** Titled Tuesday Blitz"]
[Site "Chess.com"]
[Date "2020.02.04"]
[Round "3"]
[White "DortmundCity"]
[Black "DonPreuss"]
[Result "0-1"]
[WhiteElo "2354"]
[BlackElo "2222"]
[TimeControl "180+2"]
[EndTime "13:35:44 PST"]
[Termination "DonPreuss won on time"]

1. e4 {[%clk 0:02:58.1]} 1... e5 {[%clk 0:03:00.3]} 2. Nf3 {[%clk 0:02:57.7]}
2... d5 {[%clk 0:03:01.9]} 3. Nxe5 {[%clk 0:02:50.5]} 3... Bd6 {[%clk
0:03:02.1]} 4. d4 {[%clk 0:02:50.1]} 4... dxe4 {[%clk 0:03:03.4]} 5. Nc4 {[%clk
0:02:49.2]} 5... Ne7 {[%clk 0:03:04]} 6. Nxd6+ {[%clk 0:02:49.3]} 6... cxd6
{[%clk 0:03:04.7]} 7. Be2 {[%clk 0:02:45.8]} 7... f5 {[%clk 0:03:04.9]} 8. O-O
{[%clk 0:02:42]} 8... O-O {[%clk 0:03:06.3]} 9. c4 {[%clk 0:02:34.9]} 9... Ng6
{[%clk 0:03:06.9]} 10. Nc3 {[%clk 0:02:34.5]} 10... Nc6 {[%clk 0:03:05]} 11. Re1
{[%clk 0:02:26.7]} 11... Qh4 {[%clk 0:03:00.6]} 12. g3 {[%clk 0:02:25.7]} 12...
Qd8 {[%clk 0:02:51.8]} 13. Bf1 {[%clk 0:02:25.2]} 13... Qf6 {[%clk 0:02:28.9]}
14. Be3 {[%clk 0:02:08.3]} 14... f4 {[%clk 0:02:27.1]} 15. Nd5 {[%clk
0:02:05.3]} 15... Qf5 {[%clk 0:02:26.1]} 16. gxf4 {[%clk 0:02:00.8]} 16... Nh4
{[%clk 0:02:22]} 17. Kh1 {[%clk 0:01:52.8]} 17... Nf3 {[%clk 0:02:17.7]} 18. Re2
{[%clk 0:01:50.2]} 18... Qh5 {[%clk 0:02:09.2]} 0-1

[Event "*** Titled Tuesday Blitz"]
[Site "Chess.com"]
[Date "2020.02.04"]
[Round "3"]
[White "Keaton87"]
[Black "kasparicy"]
[Result "1-0"]
[WhiteElo "2561"]
[BlackElo "2262"]
[TimeControl "180+2"]
[EndTime "13:36:30 PST"]
[Termination "Keaton87 won by resignation"]

1. d4 {[%clk 0:03:01.9]} 1... Nf6 {[%clk 0:02:58.9]} 2. Bg5 {[%clk 0:03:03.3]}
2... d5 {[%clk 0:02:59.1]} 3. Nd2 {[%clk 0:03:04.2]} 3... Qd6 {[%clk 0:02:56.5]}
4. c3 {[%clk 0:02:55.4]} 4... Ne4 {[%clk 0:02:37.7]} 5. Nxe4 {[%clk 0:02:46.9]}
5... dxe4 {[%clk 0:02:39.6]} 6. e3 {[%clk 0:02:35.6]} 6... Nc6 {[%clk
0:02:25.2]} 7. Ne2 {[%clk 0:02:30.9]} 7... e5 {[%clk 0:02:22.7]} 8. Ng3 {[%clk
0:02:17.3]} 8... exd4 {[%clk 0:02:21.3]} 9. Nxe4 {[%clk 0:02:13.9]} 9... Qe5
{[%clk 0:02:14.5]} 10. Bd3 {[%clk 0:02:14.1]} 10... dxc3 {[%clk 0:02:06.5]} 11.
Bf4 {[%clk 0:02:15]} 11... Qa5 {[%clk 0:02:02.7]} 12. Nxc3 {[%clk 0:02:08.5]}
12... Bb4 {[%clk 0:01:26.2]} 13. O-O {[%clk 0:02:09.1]} 13... O-O {[%clk
0:01:23.7]} 14. Nd5 {[%clk 0:02:07.4]} 14... Bd6 {[%clk 0:01:19.3]} 15. Bxd6
{[%clk 0:01:47.5]} 15... cxd6 {[%clk 0:01:21.2]} 16. Qh5 {[%clk 0:01:33.4]}
16... h6 {[%clk 0:01:21.9]} 17. Ne7+ {[%clk 0:01:07.1]} 17... Kh8 {[%clk
0:01:15.3]} 18. Qxa5 {[%clk 0:01:00]} 18... Nxa5 {[%clk 0:01:17.2]} 19. Rac1
{[%clk 0:00:54.7]} 19... Be6 {[%clk 0:01:05.6]} 20. Rc7 {[%clk 0:00:55.4]} 20...
b6 {[%clk 0:00:57.9]} 21. b4 {[%clk 0:00:52.6]} 1-0

[Event "*** Titled Tuesday Blitz"]
[Site "Chess.com"]
[Date "2020.02.04"]
[Round "3"]
[White "Orest_Vovk"]
[Black "Bathory44"]
[Result "0-1"]
[WhiteElo "2386"]
[BlackElo "2595"]
[TimeControl "180+2"]
[EndTime "13:36:32 PST"]
[Termination "Bathory44 won by resignation"]

1. g4 {[%clk 0:03:01.9]} 1... d5 {[%clk 0:02:58.7]} 2. Bg2 {[%clk 0:03:00.5]}
2... Bxg4 {[%clk 0:02:59]} 3. c4 {[%clk 0:03:01.2]} 3... c6 {[%clk 0:02:45.6]}
4. cxd5 {[%clk 0:02:58]} 4... Nf6 {[%clk 0:02:45.8]} 5. dxc6 {[%clk 0:02:48.8]}
5... Nxc6 {[%clk 0:02:46.6]} 6. Bxc6+ {[%clk 0:02:43.2]} 6... bxc6 {[%clk
0:02:47.3]} 7. Qa4 {[%clk 0:02:44.7]} 7... e5 {[%clk 0:02:46.7]} 8. d3 {[%clk
0:02:41.2]} 8... Qd5 {[%clk 0:02:28.6]} 9. f3 {[%clk 0:02:33.4]} 9... Bd7 {[%clk
0:02:28.8]} 10. Nc3 {[%clk 0:02:32.4]} 10... Qe6 {[%clk 0:02:28.6]} 11. h4
{[%clk 0:02:30.8]} 11... Rb8 {[%clk 0:02:25.4]} 12. Qxa7 {[%clk 0:02:17.3]}
12... Bd6 {[%clk 0:02:23.8]} 13. Nh3 {[%clk 0:02:13.1]} 13... h6 {[%clk
0:02:25]} 14. Nf2 {[%clk 0:02:11.9]} 14... O-O {[%clk 0:02:25.5]} 15. Nfe4
{[%clk 0:02:08.1]} 15... Nd5 {[%clk 0:02:22.3]} 16. Nxd6 {[%clk 0:02:03.8]}
16... Qxd6 {[%clk 0:02:23.5]} 17. Nxd5 {[%clk 0:01:57.8]} 17... cxd5 {[%clk
0:02:22.4]} 18. Qe3 {[%clk 0:01:46.8]} 18... d4 {[%clk 0:02:20.5]} 19. Qf2
{[%clk 0:01:38.9]} 19... f5 {[%clk 0:02:14.8]} 20. Rg1 {[%clk 0:01:29.9]} 20...
f4 {[%clk 0:02:11]} 21. Qg2 {[%clk 0:01:24.6]} 21... Rf7 {[%clk 0:02:11.8]} 22.
Qg6 {[%clk 0:01:20.3]} 22... Qb4+ {[%clk 0:02:11.4]} 23. Kf2 {[%clk 0:01:21]}
23... Rb6 {[%clk 0:01:58.1]} 24. Qe4 {[%clk 0:01:17.3]} 24... Qe7 {[%clk
0:01:56.1]} 25. Qa8+ {[%clk 0:00:55.4]} 25... Rf8 {[%clk 0:01:39.1]} 26. Qd5+
{[%clk 0:00:54.7]} 26... Be6 {[%clk 0:01:38.8]} 27. Qxe5 {[%clk 0:00:41.6]}
27... Qxh4+ {[%clk 0:01:39.4]} 28. Kf1 {[%clk 0:00:28.7]} 28... Bh3+ {[%clk
0:01:40.1]} 29. Rg2 {[%clk 0:00:29.9]} 29... Bxg2+ {[%clk 0:01:41.3]} 30. Kxg2
{[%clk 0:00:30.7]} 30... Rg6+ {[%clk 0:01:42.8]} 0-1

[Event "*** Titled Tuesday Blitz"]
[Site "Chess.com"]
[Date "2020.02.04"]
[Round "3"]
[White "joppie2"]
[Black "MateSchmate"]
[Result "1-0"]
[WhiteElo "2901"]
[BlackElo "2498"]
[TimeControl "180+2"]
[EndTime "13:36:38 PST"]
[Termination "joppie2 won by checkmate"]

1. d4 {[%clk 0:02:57.7]} 1... Nf6 {[%clk 0:03:01.2]} 2. c4 {[%clk 0:02:57.8]}
2... e6 {[%clk 0:03:02.7]} 3. Nf3 {[%clk 0:02:58.5]} 3... d5 {[%clk 0:03:02.5]}
4. Nc3 {[%clk 0:02:57.3]} 4... Be7 {[%clk 0:03:03.3]} 5. Bg5 {[%clk 0:02:55.5]}
5... Nbd7 {[%clk 0:03:03.4]} 6. e3 {[%clk 0:02:55.5]} 6... O-O {[%clk
0:03:04.1]} 7. Qc2 {[%clk 0:02:54.6]} 7... h6 {[%clk 0:03:03.9]} 8. h4 {[%clk
0:02:51.7]} 8... a6 {[%clk 0:02:21.5]} 9. c5 {[%clk 0:02:48.1]} 9... Nh7 {[%clk
0:02:05.4]} 10. Bf4 {[%clk 0:02:39.3]} 10... c6 {[%clk 0:01:56.2]} 11. g4 {[%clk
0:02:38.5]} 11... b6 {[%clk 0:01:32.8]} 12. Bd3 {[%clk 0:02:29]} 12... Nhf6
{[%clk 0:00:35.2]} 13. g5 {[%clk 0:02:19.2]} 13... Nh5 {[%clk 0:00:35.1]} 14.
gxh6 {[%clk 0:02:06.2]} 14... Nxf4 {[%clk 0:00:35.1]} 15. exf4 {[%clk
0:02:01.7]} 15... gxh6 {[%clk 0:00:32.8]} 16. O-O-O {[%clk 0:01:58.5]} 16...
bxc5 {[%clk 0:00:27.2]} 17. Rdg1+ {[%clk 0:01:58.9]} 17... Kh8 {[%clk
0:00:28.3]} 18. Ng5 {[%clk 0:02:00.2]} 18... cxd4 {[%clk 0:00:27.8]} 19. Bg6
{[%clk 0:01:47.5]} 19... dxc3 {[%clk 0:00:19.1]} 20. Bxf7 {[%clk 0:01:46.2]}
20... cxb2+ {[%clk 0:00:18.2]} 21. Kb1 {[%clk 0:01:46.6]} 21... Bxg5 {[%clk
0:00:11.8]} 22. hxg5 {[%clk 0:01:40.6]} 22... Rxf7 {[%clk 0:00:13.2]} 23. Rxh6+
{[%clk 0:01:39.9]} 23... Kg8 {[%clk 0:00:14.1]} 24. Qg6+ {[%clk 0:01:38.2]}
24... Rg7 {[%clk 0:00:13.5]} 25. Qxe6+ {[%clk 0:01:39.1]} 25... Rf7 {[%clk
0:00:13.8]} 26. g6 {[%clk 0:01:36]} 26... Ne5 {[%clk 0:00:15.2]} 27. gxf7+
{[%clk 0:01:36.8]} 27... Kf8 {[%clk 0:00:16.2]} 28. Rg8# {[%clk 0:01:38.5]} 1-0

[Event "*** Titled Tuesday Blitz"]
[Site "Chess.com"]
[Date "2020.02.04"]
[Round "3"]
[White "RestartingChess"]
[Black "HouseOfDurin"]
[Result "1-0"]
[WhiteElo "2355"]
[BlackElo "2082"]
[TimeControl "180+2"]
[EndTime "13:36:40 PST"]
[Termination "RestartingChess won by checkmate"]

1. e4 {[%clk 0:03:01.9]} 1... c5 {[%clk 0:03:00.5]} 2. Nf3 {[%clk 0:03:02.6]}
2... Nc6 {[%clk 0:03:01.9]} 3. d4 {[%clk 0:03:03.3]} 3... cxd4 {[%clk
0:03:03.8]} 4. Nxd4 {[%clk 0:03:05.1]} 4... e5 {[%clk 0:03:05]} 5. Nb5 {[%clk
0:03:05.8]} 5... d6 {[%clk 0:03:06.3]} 6. N1c3 {[%clk 0:03:06.9]} 6... a6 {[%clk
0:03:07.5]} 7. Na3 {[%clk 0:03:07.6]} 7... b5 {[%clk 0:03:09.1]} 8. Nd5 {[%clk
0:03:08.6]} 8... Nf6 {[%clk 0:03:10.6]} 9. Bd3 {[%clk 0:03:09.2]} 9... Nxd5
{[%clk 0:03:03.6]} 10. exd5 {[%clk 0:03:10.2]} 10... Ne7 {[%clk 0:03:04.5]} 11.
O-O {[%clk 0:03:08.5]} 11... f5 {[%clk 0:02:59.1]} 12. c4 {[%clk 0:03:00.6]}
12... b4 {[%clk 0:02:43]} 13. Nc2 {[%clk 0:02:51.2]} 13... a5 {[%clk 0:02:43.6]}
14. b3 {[%clk 0:02:48.4]} 14... g6 {[%clk 0:02:41.7]} 15. a3 {[%clk 0:02:49]}
15... Bg7 {[%clk 0:02:33.9]} 16. axb4 {[%clk 0:02:49.9]} 16... e4 {[%clk
0:02:34.6]} 17. Ra2 {[%clk 0:02:45.3]} 17... exd3 {[%clk 0:02:34.7]} 18. Qxd3
{[%clk 0:02:46.4]} 18... O-O {[%clk 0:02:23.2]} 19. Bd2 {[%clk 0:02:40.7]} 19...
f4 {[%clk 0:02:02.2]} 20. Nd4 {[%clk 0:02:35.5]} 20... Bf5 {[%clk 0:01:49.1]}
21. Nxf5 {[%clk 0:02:33.9]} 21... Rxf5 {[%clk 0:01:51]} 22. bxa5 {[%clk
0:02:32.7]} 22... f3 {[%clk 0:01:51.5]} 23. a6 {[%clk 0:02:20.4]} 23... fxg2
{[%clk 0:01:44.6]} 24. Re1 {[%clk 0:02:20.3]} 24... Be5 {[%clk 0:01:10.7]} 25.
Bc3 {[%clk 0:02:04.6]} 25... Qb6 {[%clk 0:00:51.1]} 26. Bxe5 {[%clk 0:02:01.3]}
26... Rxa6 {[%clk 0:00:48]} 27. Bd4 {[%clk 0:02:01]} 27... Qb7 {[%clk 0:00:27]}
28. Rxa6 {[%clk 0:01:59.3]} 28... Qxa6 {[%clk 0:00:27.7]} 29. Rxe7 {[%clk
0:02:00.1]} 29... Qa3 {[%clk 0:00:18.3]} 30. Qe2 {[%clk 0:01:54.2]} 30... Qc1+
{[%clk 0:00:17.5]} 31. Qe1 {[%clk 0:01:54]} 31... Qg5 {[%clk 0:00:13.1]} 32.
Qe6+ {[%clk 0:01:52.8]} 32... Kf8 {[%clk 0:00:11.8]} 33. Re8# {[%clk 0:01:53]}
1-0

[Event "*** Titled Tuesday Blitz"]
[Site "Chess.com"]
[Date "2020.02.04"]
[Round "3"]
[White "Dhaydon19"]
[Black "David_Paravyan"]
[Result "0-1"]
[WhiteElo "2667"]
[BlackElo "2864"]
[TimeControl "180+2"]
[EndTime "13:36:57 PST"]
[Termination "David_Paravyan won by resignation"]

1. d4 {[%clk 0:03:01.8]} 1... Nf6 {[%clk 0:03:00.7]} 2. Nf3 {[%clk 0:03:03.1]}
2... d5 {[%clk 0:03:01.7]} 3. g3 {[%clk 0:03:04.2]} 3... Bf5 {[%clk 0:03:02.2]}
4. Bg2 {[%clk 0:03:05.4]} 4... c6 {[%clk 0:03:03.7]} 5. O-O {[%clk 0:03:06.3]}
5... h6 {[%clk 0:03:05]} 6. b3 {[%clk 0:03:07.1]} 6... e6 {[%clk 0:03:06.4]} 7.
Bb2 {[%clk 0:03:06.5]} 7... Bd6 {[%clk 0:03:07.5]} 8. Nbd2 {[%clk 0:03:07.1]}
8... O-O {[%clk 0:03:07.5]} 9. c4 {[%clk 0:03:08]} 9... Nbd7 {[%clk 0:03:08.8]}
10. Ne5 {[%clk 0:03:08.6]} 10... a5 {[%clk 0:02:44.7]} 11. Qc1 {[%clk 0:02:52]}
11... Rc8 {[%clk 0:02:38]} 12. Ndf3 {[%clk 0:02:49.8]} 12... b5 {[%clk
0:02:30.8]} 13. Ba3 {[%clk 0:02:26.1]} 13... b4 {[%clk 0:02:26.3]} 14. Bb2
{[%clk 0:02:23.6]} 14... Ne4 {[%clk 0:02:27.1]} 15. Nxd7 {[%clk 0:02:23.5]}
15... Qxd7 {[%clk 0:02:26.3]} 16. Ne5 {[%clk 0:02:22.8]} 16... Bxe5 {[%clk
0:02:25.5]} 17. dxe5 {[%clk 0:02:22.6]} 17... Qa7 {[%clk 0:02:25.5]} 18. a3
{[%clk 0:02:15.5]} 18... Qb6 {[%clk 0:02:02.1]} 19. axb4 {[%clk 0:02:03]} 19...
axb4 {[%clk 0:02:03.5]} 20. Bxe4 {[%clk 0:01:45.2]} 20... Bxe4 {[%clk
0:02:02.8]} 21. Rd1 {[%clk 0:01:42]} 21... Rfd8 {[%clk 0:01:24.9]} 22. c5 {[%clk
0:01:26.8]} 22... Qb5 {[%clk 0:01:25.8]} 23. Qe3 {[%clk 0:01:24.4]} 23... Ra8
{[%clk 0:01:17.8]} 24. f3 {[%clk 0:01:23.1]} 24... Bc2 {[%clk 0:01:16.5]} 25.
Rdc1 {[%clk 0:01:22.7]} 25... Rxa1 {[%clk 0:01:12.8]} 26. Rxa1 {[%clk
0:01:21.3]} 26... d4 {[%clk 0:01:09.4]} 27. Bxd4 {[%clk 0:01:12.9]} 27... Bxb3
{[%clk 0:01:09.9]} 28. Ra7 {[%clk 0:01:03.4]} 28... Qc4 {[%clk 0:01:06.4]} 29.
Bb2 {[%clk 0:00:56.1]} 29... Qc2 {[%clk 0:01:06.4]} 30. Qf4 {[%clk 0:00:54.5]}
30... Qxc5+ {[%clk 0:01:07.4]} 0-1

[Event "*** Titled Tuesday Blitz"]
[Site "Chess.com"]
[Date "2020.02.04"]
[Round "3"]
[White "victormago"]
[Black "Kobalia"]
[Result "0-1"]
[WhiteElo "2421"]
[BlackElo "2625"]
[TimeControl "180+2"]
[EndTime "13:37:05 PST"]
[Termination "Kobalia won by resignation"]

1. d4 {[%clk 0:03:01.9]} 1... d5 {[%clk 0:03:00.3]} 2. c4 {[%clk 0:03:02.3]}
2... c6 {[%clk 0:03:01.3]} 3. Nc3 {[%clk 0:03:03.1]} 3... dxc4 {[%clk
0:03:01.1]} 4. a4 {[%clk 0:03:00.6]} 4... e5 {[%clk 0:02:59.9]} 5. e3 {[%clk
0:02:58.9]} 5... exd4 {[%clk 0:03:00.1]} 6. exd4 {[%clk 0:03:00.8]} 6... Be6
{[%clk 0:03:00.7]} 7. Nf3 {[%clk 0:03:01.6]} 7... Nf6 {[%clk 0:02:52.7]} 8. Ne5
{[%clk 0:02:59.6]} 8... Bb4 {[%clk 0:02:48.8]} 9. Bxc4 {[%clk 0:02:48.5]} 9...
Bxc4 {[%clk 0:02:47.6]} 10. Nxc4 {[%clk 0:02:49.5]} 10... O-O {[%clk 0:02:43.2]}
11. O-O {[%clk 0:02:49.4]} 11... Na6 {[%clk 0:02:43.9]} 12. Bg5 {[%clk
0:02:49.3]} 12... Bxc3 {[%clk 0:02:38.4]} 13. bxc3 {[%clk 0:02:49.6]} 13... h6
{[%clk 0:02:23.8]} 14. Bxf6 {[%clk 0:02:45.8]} 14... Qxf6 {[%clk 0:02:23.4]} 15.
a5 {[%clk 0:02:47.1]} 15... Nc7 {[%clk 0:02:21]} 16. Rb1 {[%clk 0:02:45.8]}
16... Nb5 {[%clk 0:02:19.8]} 17. Qd3 {[%clk 0:02:43.2]} 17... Rfd8 {[%clk
0:02:14]} 18. Rbd1 {[%clk 0:02:41.3]} 18... c5 {[%clk 0:01:44.2]} 19. Ne5 {[%clk
0:02:23.5]} 19... a6 {[%clk 0:01:43.4]} 20. Nf3 {[%clk 0:02:21.5]} 20... Rac8
{[%clk 0:01:42.1]} 21. Rfe1 {[%clk 0:02:07.9]} 21... cxd4 {[%clk 0:01:40.8]} 22.
cxd4 {[%clk 0:02:08.8]} 22... Rc3 {[%clk 0:01:41.1]} 23. Qe4 {[%clk 0:02:09.2]}
23... Rc6 {[%clk 0:01:31]} 24. Rc1 {[%clk 0:01:26.9]} 24... Nc3 {[%clk
0:01:17.7]} 25. Qd3 {[%clk 0:01:05.2]} 25... Rdc8 {[%clk 0:01:16.7]} 26. Kf1
{[%clk 0:01:00.8]} 26... Nd5 {[%clk 0:01:01]} 27. Rxc6 {[%clk 0:00:58.6]} 27...
Qxc6 {[%clk 0:01:01.2]} 28. Qf5 {[%clk 0:00:52.3]} 28... Qb5+ {[%clk 0:00:55.6]}
29. Re2 {[%clk 0:00:44.2]} 29... Ne3+ {[%clk 0:00:51.9]} 0-1